Workbook

Sheet Protection Occupations
A2: Measurement Date: 6/30/2015
A3: Membership Goup: Protection Occupations
H4: DEFERRED OUTFLOWS OF RESOURCES | M4: DEFERRED INFLOWS OF RESOURCES
H5: (Excluding Employer Specific Amounts)* | M5: (Excluding Employer Specific Amounts) *
A6: Employer ID # | B6: Employer Name | C6: 2021 Actual Employer Contributions | D6: Employer Allocation Percentage ** | E6: Net Pension Liability (NPL)/ (Asset) | F6: Change in NPL due to 1% Decrease in the Actuarial Assumed Investment Return (6.00 %) | G6: Change in NPL due to 1% Increase in the Actuarial Assumed Investment Return (8.00%) | H6: Differences Between Expected and Actual Experience | I6: Changes of Assumptions | J6: Difference Between Projected and Actual Investment Earnings on Pension Plan Investments | K6: Total Deferred Outflows of Resources | M6: Differences Between Expected and Actual Experience | N6: Changes of Assumptions | O6: Difference Between Projected and Actual Investment Earnings on Pension Plan Investments | P6: Total Deferred Inflows of Resources | Q6: Total Proportionate Share of Allocable Plan Pension Expense
A7: EMPLOYER ID # | B7: EMPLOYER_NAME | C7: 38282382.77 | D7: 1 | E7: -344448595 | F7: -95977256 | G7: -552339231 | H7: 26556501 | I7: 3250675 | J7: 41164781 | K7: =SUM(H7:J7) -> 70971957 | M7: 276840 | N7: 384142 | O7: 334167424 | P7: =SUM(M7:O7) -> 334828406 | Q7: -33901464
A8: 00216 | B8: STATE - DEPT OF HUMAN SERVICES/CCUSO | C8: 539858.89 | D8: =+C8/$C$7 -> 0.01410201902 | E8: =ROUND(D8*$E$7,0) -> -4857421 | F8: =ROUND(D8*$F$7,0)-1 -> -1353474 | G8: =ROUND(D8*$G$7,0)-1 -> -7789099 | H8: =ROUND(D8*$H$7,0) -> 374500 | I8: =ROUND(D8*$I$7,0) -> 45841 | J8: =ROUND(D8*$J$7,0) -> 580507 | K8: =ROUND(SUM(H8:J8),0) -> 1000848 | M8: =ROUND(D8*$M$7,0) -> 3904 | N8: =ROUND(D8*$N$7,0) -> 5417 | O8: =ROUND(D8*$O$7,0) -> 4712435 | P8: =ROUND(SUM(M8:O8),0) -> 4721756 | Q8: =ROUND(D8*$Q$7,0) -> -478079
A9: 00221 | B9: MAR-MAC UNIFIED POLICE DISTRICT | C9: 13010.93 | D9: =+C9/$C$7 -> 0.0003398672982 | E9: =ROUND(D9*$E$7,0) -> -117067 | F9: =ROUND(D9*$F$7,0) -> -32620 | G9: =ROUND(D9*$G$7,0) -> -187722 | H9: =ROUND(D9*$H$7,0) -> 9026 | I9: =ROUND(D9*$I$7,0) -> 1105 | J9: =ROUND(D9*$J$7,0) -> 13991 | K9: =ROUND(SUM(H9:J9),0) -> 24122 | M9: =ROUND(D9*$M$7,0) -> 94 | N9: =ROUND(D9*$N$7,0) -> 131 | O9: =ROUND(D9*$O$7,0) -> 113573 | P9: =ROUND(SUM(M9:O9),0) -> 113798 | Q9: =ROUND(D9*$Q$7,0) -> -11522
A10: 00313 | B10: POLK COUNTY RANGERS | C10: 1745378.27 | D10: 0.0455922057 | E10: =ROUND(D10*$E$7,0)-1 -> -15704172 | F10: =ROUND(D10*$F$7,0)-1 -> -4375816 | G10: =ROUND(D10*$G$7,0)-1 -> -25182365 | H10: =ROUND(D10*$H$7,0)-1 -> 1210768 | I10: =ROUND(D10*$I$7,0)-1 -> 148204 | J10: =ROUND(D10*$J$7,0)-1 -> 1876792 | K10: 3235764 | M10: =ROUND(D10*$M$7,0)-1 -> 12621 | N10: =ROUND(D10*$N$7,0)-1 -> 17513 | O10: =ROUND(D10*$O$7,0)-1 -> 15235429 | P10: 15265563 | Q10: =ROUND(D10*$Q$7,0)+1 -> -1545642
A11: 00331 | B11: BATTLE CREEK COMMUNITY AMBULANCE | C11: 2935.1 | D11: 7.666973129e-05 | E11: -26409 | F11: -7359 | G11: -42348 | H11: 2036 | I11: 249 | J11: 3156 | K11: 5441 | M11: 21 | N11: 29 | O11: 25621 | P11: 25671 | Q11: -2599
A12: 00348 | B12: STATE - PUB DEF - PROTECTION OCCUPATIONS | C12: 142501.63 | D12: 0.003722381411 | E12: -1282169 | F12: -357264 | G12: -2056017 | H12: 98853 | I12: 12100 | J12: 153231 | K12: 264184 | M12: 1031 | N12: 1430 | O12: 1243899 | P12: 1246360 | Q12: -126194
A13: 00410 | B13: DELAWARE TOWNSHIP FIRE DEPT - POLK CO | C13: 6103.09 | D13: 0.0001594229397 | E13: -54913 | F13: -15301 | G13: -88056 | H13: 4234 | I13: 518 | J13: 6563 | K13: 11315 | M13: 44 | N13: 61 | O13: 53274 | P13: 53379 | Q13: -5405
A14: 01201 | B14: ADAIR COUNTY | C14: 46571.32 | D14: 0.001216520933 | E14: -419029 | F14: -116758 | G14: -671932 | H14: 32307 | I14: 3955 | J14: 50078 | K14: 86340 | M14: 337 | N14: 467 | O14: 406522 | P14: 407326 | Q14: -41242
A15: 01204 | B15: ADAIR COUNTY HEALTH SYSTEM | C15: 33495.33 | D15: 0.0008749541585 | E15: -301377 | F15: -83976 | G15: -483272 | H15: 23236 | I15: 2844 | J15: 36017 | K15: 62097 | M15: 242 | N15: 336 | O15: 292381 | P15: 292959 | Q15: -29662
A16: 01301 | B16: CITY OF FONTANELLE | C16: 2668.95 | D16: 6.971744721e-05 | E16: -24014 | F16: -6691 | G16: -38508 | H16: 1851 | I16: 227 | J16: 2870 | K16: 4948 | M16: 19 | N16: 27 | O16: 23297 | P16: 23343 | Q16: -2364
A17: 01302 | B17: CITY OF GREENFIELD | C17: 12242.84 | D17: 0.0003198035 | E17: -110156 | F17: -30694 | G17: -176640 | H17: 8493 | I17: 1040 | J17: 13165 | K17: 22698 | M17: 89 | N17: 123 | O17: 106868 | P17: 107080 | Q17: -10842
A18: 01306 | B18: CITY OF ADAIR | C18: 7378.13 | D18: 0.0001927291215 | E18: -66385 | F18: -18498 | G18: -106452 | H18: 5118 | I18: 626 | J18: 7934 | K18: 13678 | M18: 53 | N18: 74 | O18: 64404 | P18: 64531 | Q18: -6534
A19: 02201 | B19: ADAMS COUNTY | C19: 34413.76 | D19: 0.0008989450894 | E19: -309640 | F19: -86278 | G19: -496523 | H19: 23873 | I19: 2922 | J19: 37005 | K19: 63800 | M19: 249 | N19: 345 | O19: 300398 | P19: 300992 | Q19: -30476
A20: 03201 | B20: ALLAMAKEE COUNTY | C20: 52522.65 | D20: 0.001371979647 | E20: -472576 | F20: -131679 | G20: -757798 | H20: 36435 | I20: 4460 | J20: 56477 | K20: 97372 | M20: 380 | N20: 527 | O20: 458471 | P20: 459378 | Q20: -46512
A21: 03304 | B21: CITY OF LANSING | C21: 14130.71 | D21: 0.0003691178286 | E21: -127142 | F21: -35427 | G21: -203878 | H21: 9802 | I21: 1200 | J21: 15195 | K21: 26197 | M21: 102 | N21: 142 | O21: 123347 | P21: 123591 | Q21: -12514
A22: 03306 | B22: CITY OF POSTVILLE | C22: 22782.29 | D22: 0.0005951115984 | E22: -204985 | F22: -57117 | G22: -328703 | H22: 15804 | I22: 1935 | J22: 24498 | K22: 42237 | M22: 165 | N22: 229 | O22: 198867 | P22: 199261 | Q22: -20175
A23: 03312 | B23: VETERAN'S MEMORIAL HOSPITAL | C23: 44409.69 | D23: 0.001160055534 | E23: -399579 | F23: -111339 | G23: -640744 | H23: 30807 | I23: 3771 | J23: 47753 | K23: 82331 | M23: 321 | N23: 446 | O23: 387653 | P23: 388420 | Q23: -39328
A24: 03313 | B24: WAUKON POLICE DEPARTMENT | C24: 36725.14 | D24: 0.0009593222089 | E24: -330437 | F24: -92073 | G24: -529871 | H24: 25476 | I24: 3118 | J24: 39490 | K24: 68084 | M24: 266 | N24: 369 | O24: 320574 | P24: 321209 | Q24: -32522
A25: 04201 | B25: APPANOOSE COUNTY | C25: 25669.9 | D25: 0.0006705408113 | E25: -230967 | F25: -64357 | G25: -370366 | H25: 17807 | I25: 2180 | J25: 27603 | K25: 47590 | M25: 186 | N25: 258 | O25: 224073 | P25: 224517 | Q25: -22732
A26: 04301 | B26: CITY OF CENTERVILLE | C26: 43718.67 | D26: 0.001142004934 | E26: -393362 | F26: -109606 | G26: -630774 | H26: 30328 | I26: 3712 | J26: 47010 | K26: 81050 | M26: 316 | N26: 439 | O26: 381621 | P26: 382376 | Q26: -38716
A27: 05201 | B27: AUDUBON COUNTY | C27: 19221.39 | D27: 0.0005020949222 | E27: -172946 | F27: -48190 | G27: -277327 | H27: 13334 | I27: 1632 | J27: 20669 | K27: 35635 | M27: 139 | N27: 193 | O27: 167784 | P27: 168116 | Q27: -17022
A28: 05302 | B28: CITY OF AUDUBON | C28: 22803.01 | D28: 0.0005956528395 | E28: -205172 | F28: -57169 | G28: -329002 | H28: 15818 | I28: 1936 | J28: 24520 | K28: 42274 | M28: 165 | N28: 229 | O28: 199048 | P28: 199442 | Q28: -20194
A29: 06201 | B29: BENTON COUNTY | C29: 108180.37 | D29: 0.002825852577 | E29: -973361 | F29: -271218 | G29: -1560829 | H29: 75045 | I29: 9186 | J29: 116326 | K29: 200557 | M29: 782 | N29: 1086 | O29: 944308 | P29: 946176 | Q29: -95801
A30: 06301 | B30: CITY OF VINTON | C30: 59373.71 | D30: 0.001550940817 | E30: -534219 | F30: -148855 | G30: -856645 | H30: 41188 | I30: 5042 | J30: 63844 | K30: 110074 | M30: 429 | N30: 596 | O30: 518274 | P30: 519299 | Q30: -52579
A31: 06302 | B31: CITY OF BELLE PLAINE | C31: 23845.29 | D31: 0.00062287894 | E31: -214550 | F31: -59782 | G31: -344040 | H31: 16541 | I31: 2025 | J31: 25641 | K31: 44207 | M31: 172 | N31: 239 | O31: 208146 | P31: 208557 | Q31: -21117
A32: 06315 | B32: CITY OF URBANA | C32: 7340.65 | D32: 0.0001917500811 | E32: -66048 | F32: -18404 | G32: -105911 | H32: 5092 | I32: 623 | J32: 7893 | K32: 13608 | M32: 53 | N32: 74 | O32: 64077 | P32: 64204 | Q32: -6501
A33: 07001 | B33: UNIVERSITY OF NORTHERN IOWA | C33: 60668.65 | D33: 0.00158476682 | E33: -545871 | F33: -152102 | G33: -875329 | H33: 42086 | I33: 5152 | J33: 65237 | K33: 112475 | M33: 439 | N33: 609 | O33: 529577 | P33: 530625 | Q33: -53726
A34: 07201 | B34: BLACK HAWK COUNTY | C34: 152100.21 | D34: 0.003973112408 | E34: -1368533 | F34: -381328 | G34: -2194506 | H34: 105512 | I34: 12915 | J34: 163552 | K34: 281979 | M34: 1100 | N34: 1526 | O34: 1327685 | P34: 1330311 | Q34: -134694
A35: 07304 | B35: CITY OF GILBERTVILLE | C35: 5059.32 | D35: 0.0001321579179 | E35: -45522 | F35: -12684 | G35: -72996 | H35: 3510 | I35: 430 | J35: 5440 | K35: 9380 | M35: 37 | N35: 51 | O35: 44163 | P35: 44251 | Q35: -4480
A36: 07306 | B36: CITY OF DUNKERTON | C36: 4348.38 | D36: 0.0001135869736 | E36: -39125 | F36: -10902 | G36: -62739 | H36: 3016 | I36: 369 | J36: 4676 | K36: 8061 | M36: 31 | N36: 44 | O36: 37957 | P36: 38032 | Q36: -3851
A37: 07311 | B37: CITY OF LA PORTE CITY | C37: 21135.96 | D37: 0.0005521066995 | E37: -190172 | F37: -52990 | G37: -304950 | H37: 14662 | I37: 1795 | J37: 22727 | K37: 39184 | M37: 153 | N37: 212 | O37: 184496 | P37: 184861 | Q37: -18717
A38: 07319 | B38: CITY OF EVANSDALE | C38: 7976.85 | D38: 0.0002083686914 | E38: -71772 | F38: -19999 | G38: -115090 | H38: 5534 | I38: 677 | J38: 8577 | K38: 14788 | M38: 58 | N38: 80 | O38: 69630 | P38: 69768 | Q38: -7064
A39: 07334 | B39: HUDSON POLICE DEPARTMENT | C39: 26539.37 | D39: 0.0006932528249 | E39: -238790 | F39: -66537 | G39: -382911 | H39: 18410 | I39: 2254 | J39: 28538 | K39: 49202 | M39: 192 | N39: 266 | O39: 231663 | P39: 232121 | Q39: -23502
A40: 08201 | B40: BOONE COUNTY | C40: 52270.78 | D40: 0.00136540038 | E40: -470310 | F40: -131047 | G40: -754164 | H40: 36260 | I40: 4438 | J40: 56206 | K40: 96904 | M40: 378 | N40: 525 | O40: 456272 | P40: 457175 | Q40: -46289
A41: 08204 | B41: BOONE COUNTY HOSPITAL | C41: 90515.05 | D41: 0.002364404811 | E41: -814416 | F41: -226929 | G41: -1305954 | H41: 62790 | I41: 7686 | J41: 97330 | K41: 167806 | M41: 655 | N41: 908 | O41: 790107 | P41: 791670 | Q41: -80157
A42: 08301 | B42: CITY OF BOONE | C42: 10976.24 | D42: 0.0002867177852 | E42: -98760 | F42: -27518 | G42: -158365 | H42: 7614 | I42: 932 | J42: 11803 | K42: 20349 | M42: 79 | N42: 110 | O42: 95812 | P42: 96001 | Q42: -9720
A43: 08302 | B43: CITY OF OGDEN | C43: 11617.26 | D43: 0.000303462302 | E43: -104527 | F43: -29125 | G43: -167614 | H43: 8059 | I43: 986 | J43: 12492 | K43: 21537 | M43: 84 | N43: 117 | O43: 101407 | P43: 101608 | Q43: -10288
A44: 08303 | B44: CITY OF MADRID | C44: 22483.61 | D44: 0.0005873095762 | E44: -202298 | F44: -56368 | G44: -324394 | H44: 15597 | I44: 1909 | J44: 24176 | K44: 41682 | M44: 163 | N44: 226 | O44: 196260 | P44: 196649 | Q44: -19911
A45: 09201 | B45: BREMER COUNTY | C45: 67799.29 | D45: 0.001771031088 | E45: -610029 | F45: -169979 | G45: -978210 | H45: 47032 | I45: 5757 | J45: 72904 | K45: 125693 | M45: 490 | N45: 680 | O45: 591821 | P45: 592991 | Q45: -60041
A46: 09302 | B46: CITY OF SUMNER | C46: 11622.07 | D46: 0.0003035879472 | E46: -104570 | F46: -29138 | G46: -167684 | H46: 8062 | I46: 987 | J46: 12497 | K46: 21546 | M46: 84 | N46: 117 | O46: 101449 | P46: 101650 | Q46: -10292
A47: 09303 | B47: CITY OF WAVERLY | C47: 1516.52 | D47: 3.961404412e-05 | E47: -13645 | F47: -3802 | G47: -21880 | H47: 1052 | I47: 129 | J47: 1631 | K47: 2812 | M47: 11 | N47: 15 | O47: 13238 | P47: 13264 | Q47: -1343
A48: 09304 | B48: CITY OF TRIPOLI | C48: 5501.67 | D48: 0.0001437128413 | E48: -49502 | F48: -13793 | G48: -79378 | H48: 3817 | I48: 467 | J48: 5916 | K48: 10200 | M48: 40 | N48: 55 | O48: 48024 | P48: 48119 | Q48: -4872
A49: 09305 | B49: CITY OF JANESVILLE | C49: 8750.66 | D49: 0.0002285819055 | E49: -78735 | F49: -21939 | G49: -126255 | H49: 6070 | I49: 743 | J49: 9410 | K49: 16223 | M49: 63 | N49: 88 | O49: 76385 | P49: 76536 | Q49: -7749
A50: 09307 | B50: CITY OF READLYN | C50: 5837.64 | D50: 0.0001524889408 | E50: -52525 | F50: -14635 | G50: -84226 | H50: 4050 | I50: 496 | J50: 6277 | K50: 10823 | M50: 42 | N50: 59 | O50: 50957 | P50: 51058 | Q50: -5170
A51: 09318 | B51: WAVERLY HEALTH CENTER | C51: 97814.12 | D51: 0.002555068753 | E51: -880090 | F51: -245228 | G51: -1411265 | H51: 67854 | I51: 8306 | J51: 105179 | K51: 181339 | M51: 707 | N51: 982 | O51: 853821 | P51: 855510 | Q51: -86621
A52: 09319 | B52: DENVER POLICE DEPARTMENT | C52: 18012.17 | D52: 0.0004705080692 | E52: -162066 | F52: -45158 | G52: -259880 | H52: 12495 | I52: 1529 | J52: 19368 | K52: 33392 | M52: 130 | N52: 181 | O52: 157228 | P52: 157539 | Q52: -15951
A53: 10201 | B53: BUCHANAN COUNTY | C53: 51717.63 | D53: 0.001350951175 | E53: -465333 | F53: -129661 | G53: -746183 | H53: 35877 | I53: 4392 | J53: 55612 | K53: 95881 | M53: 374 | N53: 519 | O53: 451444 | P53: 452337 | Q53: -45799
A54: 10205 | B54: BUCHANAN COUNTY HEALTH CENTER | C54: 5048.96 | D54: 0.0001318872974 | E54: -45428 | F54: -12658 | G54: -72847 | H54: 3502 | I54: 429 | J54: 5429 | K54: 9360 | M54: 37 | N54: 51 | O54: 44072 | P54: 44160 | Q54: -4471
A55: 10301 | B55: CITY OF FAIRBANK | C55: 4613.69 | D55: 0.0001205173154 | E55: -41512 | F55: -11567 | G55: -66566 | H55: 3201 | I55: 392 | J55: 4961 | K55: 8554 | M55: 33 | N55: 46 | O55: 40273 | P55: 40352 | Q55: -4086
A56: 10302 | B56: CITY OF INDEPENDENCE | C56: 83422.5 | D56: 0.002179135518 | E56: -750600 | F56: -209147 | G56: -1203622 | H56: 57870 | I56: 7084 | J56: 89704 | K56: 154658 | M56: 603 | N56: 837 | O56: 728196 | P56: 729636 | Q56: -73876
A57: 10303 | B57: CITY OF JESUP | C57: 21946.72 | D57: 0.0005732851095 | E57: -197467 | F57: -55022 | G57: -316648 | H57: 15224 | I57: 1864 | J57: 23599 | K57: 40687 | M57: 159 | N57: 220 | O57: 191573 | P57: 191952 | Q57: -19435
A58: 10306 | B58: CITY OF LAMONT | C58: 129.25 | D58: 3.376226626e-06 | E58: -1163 | F58: -324 | G58: -1865 | H58: 90 | I58: 11 | J58: 139 | K58: 240 | M58: 1 | N58: 1 | O58: 1128 | P58: 1130 | Q58: -114
A59: 11201 | B59: BUENA VISTA COUNTY | C59: 60746.68 | D59: 0.001586805094 | E59: -546573 | F59: -152297 | G59: -876455 | H59: 42140 | I59: 5158 | J59: 65320 | K59: 112618 | M59: 439 | N59: 610 | O59: 530259 | P59: 531308 | Q59: -53795
A60: 11204 | B60: BUENA VISTA REGIONAL MEDICAL CENTER | C60: 88492.86 | D60: 0.002311581819 | E60: -796221 | F60: -221859 | G60: -1276777 | H60: 61388 | I60: 7514 | J60: 95156 | K60: 164058 | M60: 640 | N60: 888 | O60: 772455 | P60: 773983 | Q60: -78366
A61: 11301 | B61: CITY OF SIOUX RAPIDS | C61: 4438.49 | D61: 0.0001159407978 | E61: -39936 | F61: -11128 | G61: -64039 | H61: 3079 | I61: 377 | J61: 4773 | K61: 8229 | M61: 32 | N61: 45 | O61: 38744 | P61: 38821 | Q61: -3931
A62: 11302 | B62: CITY OF NEWELL | C62: 5008.56 | D62: 0.0001308319816 | E62: -45065 | F62: -12557 | G62: -72264 | H62: 3474 | I62: 425 | J62: 5386 | K62: 9285 | M62: 36 | N62: 50 | O62: 43720 | P62: 43806 | Q62: -4435
A63: 11303 | B63: CITY OF MARATHON | C63: 30.26 | D63: 7.904419164e-07 | E63: -272 | F63: -76 | G63: -437 | H63: 21 | I63: 3 | J63: 33 | K63: 57 | M63: 0 | N63: 0 | O63: 264 | P63: 264 | Q63: -27
A64: 11307 | B64: CITY OF STORM LAKE | C64: 6896.07 | D64: 0.0001801369064 | E64: -62048 | F64: -17289 | G64: -99497 | H64: 4784 | I64: 586 | J64: 7415 | K64: 12785 | M64: 50 | N64: 69 | O64: 60196 | P64: 60315 | Q64: -6107
A65: 12201 | B65: BUTLER COUNTY | C65: 35315.26 | D65: 0.0009224937803 | E65: -317752 | F65: -88538 | G65: -509530 | H65: 24498 | I65: 2999 | J65: 37974 | K65: 65471 | M65: 255 | N65: 354 | O65: 308267 | P65: 308876 | Q65: -31274
A66: 12302 | B66: CITY OF PARKERSBURG | C66: 10825.75 | D66: 0.0002827867342 | E66: -97405 | F66: -27141 | G66: -156194 | H66: 7510 | I66: 919 | J66: 11641 | K66: 20070 | M66: 78 | N66: 109 | O66: 94498 | P66: 94685 | Q66: -9587
A67: 12305 | B67: CITY OF CLARKSVILLE | C67: 8601 | D67: 0.0002246725354 | E67: -77388 | F67: -21563 | G67: -124095 | H67: 5967 | I67: 730 | J67: 9249 | K67: 15946 | M67: 62 | N67: 86 | O67: 75078 | P67: 75226 | Q67: -7617
A68: 12310 | B68: CITY OF APLINGTON | C68: 8540.02 | D68: 0.0002230796356 | E68: -76839 | F68: -21411 | G68: -123216 | H68: 5924 | I68: 725 | J68: 9183 | K68: 15832 | M68: 62 | N68: 86 | O68: 74546 | P68: 74694 | Q68: -7563
A69: 12321 | B69: CITY OF BRISTOW | C69: 57.67 | D69: 1.506437056e-06 | E69: -519 | F69: -145 | G69: -832 | H69: 40 | I69: 5 | J69: 62 | K69: 107 | M69: 0 | N69: 1 | O69: 503 | P69: 504 | Q69: -51
A70: 13201 | B70: CALHOUN COUNTY | C70: 57642.93 | D70: 0.001505729942 | E70: -518647 | F70: -144516 | G70: -831674 | H70: 39987 | I70: 4895 | J70: 61983 | K70: 106865 | M70: 417 | N70: 578 | O70: 503166 | P70: 504161 | Q70: -51046
A71: 13301 | B71: CITY OF ROCKWELL CITY | C71: 21434.67 | D71: 0.0005599095053 | E71: -192860 | F71: -53739 | G71: -309260 | H71: 14869 | I71: 1820 | J71: 23049 | K71: 39738 | M71: 155 | N71: 215 | O71: 187104 | P71: 187474 | Q71: -18982
A72: 13303 | B72: CITY OF LAKE CITY | C72: 19171.88 | D72: 0.0005008016381 | E72: -172500 | F72: -48066 | G72: -276612 | H72: 13300 | I72: 1628 | J72: 20615 | K72: 35543 | M72: 139 | N72: 192 | O72: 167352 | P72: 167683 | Q72: -16978
A73: 13307 | B73: CITY OF POMEROY | C73: 3769.35 | D73: =+C73/$C$7 -> 9.846173951e-05 | E73: =ROUND(D73*$E$7,0) -> -33915 | F73: =ROUND(D73*$F$7,0) -> -9450 | G73: =ROUND(D73*$G$7,0) -> -54384 | H73: =ROUND(D73*$H$7,0) -> 2615 | I73: =ROUND(D73*$I$7,0) -> 320 | J73: =ROUND(D73*$J$7,0) -> 4053 | K73: =ROUND(SUM(H73:J73),0) -> 6988 | M73: =ROUND(D73*$M$7,0) -> 27 | N73: =ROUND(D73*$N$7,0) -> 38 | O73: =ROUND(D73*$O$7,0) -> 32903 | P73: =ROUND(SUM(M73:O73),0) -> 32968 | Q73: =ROUND(D73*$Q$7,0) -> -3338
A74: 13323 | B74: MANSON POLICE DEPT | C74: 16546.86 | D74: 0.0004322317161 | E74: -148882 | F74: -41484 | G74: -238739 | H74: 11479 | I74: 1405 | J74: 17793 | K74: 30677 | M74: 120 | N74: 166 | O74: 144438 | P74: 144724 | Q74: -14653
A75: 14201 | B75: CARROLL COUNTY | C75: 134083.02 | D75: 0.003502473208 | E75: -1206422 | F75: -336158 | G75: -1934553 | H75: 93013 | I75: 11385 | J75: 144179 | K75: 248577 | M75: 970 | N75: 1345 | O75: 1170412 | P75: 1172727 | Q75: -118739
A76: 14302 | B76: CITY OF CARROLL | C76: 2718.54 | D76: 7.101282113e-05 | E76: -24460 | F76: -6816 | G76: -39223 | H76: 1886 | I76: 231 | J76: 2923 | K76: 5040 | M76: 20 | N76: 27 | O76: 23730 | P76: 23777 | Q76: -2407
A77: 14308 | B77: CITY OF MANNING | C77: 22230.49 | D77: 0.0005806976576 | E77: -200020 | F77: -55734 | G77: -320742 | H77: 15421 | I77: 1888 | J77: 23904 | K77: 41213 | M77: 161 | N77: 223 | O77: 194050 | P77: 194434 | Q77: -19687
A78: 14309 | B78: CITY OF COON RAPIDS | C78: 13100.86 | D78: 0.0003422164205 | E78: -117876 | F78: -32845 | G78: -189020 | H78: 9088 | I78: 1112 | J78: 14087 | K78: 24287 | M78: 95 | N78: 131 | O78: 114358 | P78: 114584 | Q78: -11602
A79: 15201 | B79: CASS COUNTY | C79: 24647.64 | D79: 0.0006438376667 | E79: -221769 | F79: -61794 | G79: -355617 | H79: 17098 | I79: 2093 | J79: 26503 | K79: 45694 | M79: 178 | N79: 247 | O79: 215150 | P79: 215575 | Q79: -21827
A80: 15302 | B80: CITY OF ATLANTIC | C80: 91510.33 | D80: 0.002390403193 | E80: -823371 | F80: -229424 | G80: -1320313 | H80: 63481 | I80: 7770 | J80: 98400 | K80: 169651 | M80: 662 | N80: 918 | O80: 798795 | P80: 800375 | Q80: -81038
A81: 15305 | B81: CITY OF ANITA | C81: 57.66 | D81: 1.506175839e-06 | E81: -519 | F81: -145 | G81: -832 | H81: 40 | I81: 5 | J81: 62 | K81: 107 | M81: 0 | N81: 1 | O81: 503 | P81: 504 | Q81: -51
A82: 16201 | B82: CEDAR COUNTY | C82: 84005.07 | D82: 0.002194353223 | E82: -755842 | F82: -210608 | G82: -1212027 | H82: 58274 | I82: 7133 | J82: 90330 | K82: 155737 | M82: 607 | N82: 843 | O82: 733281 | P82: 734731 | Q82: -74392
A83: 16302 | B83: CITY OF STANWOOD | C83: 192.2 | D83: 5.020586131e-06 | E83: -1729 | F83: -482 | G83: -2773 | H83: 133 | I83: 16 | J83: 207 | K83: 356 | M83: 1 | N83: 2 | O83: 1678 | P83: 1681 | Q83: -170
A84: 16303 | B84: CITY OF TIPTON | C84: 50380.35 | D84: 0.00131601918 | E84: -453301 | F84: -126308 | G84: -726889 | H84: 34949 | I84: 4278 | J84: 54174 | K84: 93401 | M84: 364 | N84: 506 | O84: 439771 | P84: 440641 | Q84: -44615
A85: 16304 | B85: CITY OF WEST BRANCH | C85: 25986.35 | D85: 0.0006788070156 | E85: -233814 | F85: -65150 | G85: -374932 | H85: 18027 | I85: 2207 | J85: 27943 | K85: 48177 | M85: 188 | N85: 261 | O85: 226835 | P85: 227284 | Q85: -23013
A86: 16305 | B86: CITY OF DURANT | C86: 25030.03 | D86: 0.0006538263344 | E86: -225210 | F86: -62752 | G86: -361134 | H86: 17363 | I86: 2125 | J86: 26915 | K86: 46403 | M86: 181 | N86: 251 | O86: 218487 | P86: 218919 | Q86: -22166
A87: 16306 | B87: CITY OF MECHANICSVILLE | C87: 5317.81 | D87: 0.00013891011 | E87: -47847 | F87: -13332 | G87: -76726 | H87: 3689 | I87: 452 | J87: 5718 | K87: 9859 | M87: 38 | N87: 53 | O87: 46419 | P87: 46510 | Q87: -4709
A88: 16307 | B88: CITY OF CLARENCE | C88: 9239.03 | D88: 0.0002413389484 | E88: -83129 | F88: -23163 | G88: -133301 | H88: 6409 | I88: 785 | J88: 9935 | K88: 17129 | M88: 67 | N88: 93 | O88: 80648 | P88: 80808 | Q88: -8182
A89: 17201 | B89: CERRO GORDO COUNTY | C89: 138515.85 | D89: 0.003618266157 | E89: -1246307 | F89: -347271 | G89: -1998510 | H89: 96088 | I89: 11762 | J89: 148945 | K89: 256795 | M89: 1002 | N89: 1390 | O89: 1209107 | P89: 1211499 | Q89: -122665
A90: 17303 | B90: CITY OF CLEAR LAKE | C90: 147944.91 | D90: 0.003864569008 | E90: -1331145 | F90: -370911 | G90: -2134553 | H90: 102629 | I90: 12562 | J90: 159084 | K90: 274275 | M90: 1070 | N90: 1485 | O90: 1291413 | P90: 1293968 | Q90: -131015
A91: 17305 | B91: CITY OF THORNTON | C91: 13.45 | D91: 3.513365425e-07 | E91: -121 | F91: -34 | G91: -194 | H91: 9 | I91: 1 | J91: 14 | K91: 24 | M91: 0 | N91: 0 | O91: 117 | P91: 117 | Q91: -12
A92: 17308 | B92: CITY OF ROCKWELL | C92: 4150.12 | D92: 0.0001084080901 | E92: -37341 | F92: -10405 | G92: -59878 | H92: 2879 | I92: 352 | J92: 4463 | K92: 7694 | M92: 30 | N92: 42 | O92: 36226 | P92: 36298 | Q92: -3675
A93: 18201 | B93: CHEROKEE COUNTY | C93: 22238.29 | D93: 0.0005809014066 | E93: -200091 | F93: -55753 | G93: -320855 | H93: 15427 | I93: 1888 | J93: 23913 | K93: 41228 | M93: 161 | N93: 223 | O93: 194118 | P93: 194502 | Q93: -19693
A94: 18302 | B94: CITY OF CHEROKEE | C94: 47546.5 | D94: 0.001241994269 | E94: -427803 | F94: -119203 | G94: -686002 | H94: 32983 | I94: 4037 | J94: 51126 | K94: 88146 | M94: 344 | N94: 477 | O94: 415034 | P94: 415855 | Q94: -42105
A95: 18306 | B95: CITY OF MARCUS | C95: 4077.76 | D95: 0.0001065179256 | E95: -36690 | F95: -10223 | G95: -58834 | H95: 2829 | I95: 346 | J95: 4385 | K95: 7560 | M95: 29 | N95: 41 | O95: 35595 | P95: 35665 | Q95: -3611
A96: 18309 | B96: CITY OF AURELIA | C96: 5199.85 | D96: 0.0001358287971 | E96: -46786 | F96: -13036 | G96: -75024 | H96: 3607 | I96: 442 | J96: 5591 | K96: 9640 | M96: 38 | N96: 52 | O96: 45390 | P96: 45480 | Q96: -4605
A97: 19201 | B97: CHICKASAW COUNTY | C97: 39711.39 | D97: 0.001037328064 | E97: -357306 | F97: -99560 | G97: -572957 | H97: 27548 | I97: 3372 | J97: 42701 | K97: 73621 | M97: 287 | N97: 398 | O97: 346641 | P97: 347326 | Q97: -35167
A98: 19303 | B98: CITY OF NASHUA | C98: 1761.82 | D98: 4.602169125e-05 | E98: -15852 | F98: -4417 | G98: -25420 | H98: 1222 | I98: 150 | J98: 1894 | K98: 3266 | M98: 13 | N98: 18 | O98: 15379 | P98: 15410 | Q98: -1560
A99: 19304 | B99: CITY OF NEW HAMPTON | C99: 32159.84 | D99: 0.0008400689213 | E99: -289361 | F99: -80628 | G99: -464003 | H99: 22309 | I99: 2731 | J99: 34581 | K99: 59621 | M99: 233 | N99: 323 | O99: 280724 | P99: 281280 | Q99: -28480
A100: 20201 | B100: CLARKE COUNTY | C100: 52853.75 | D100: 0.001380628534 | E100: -475556 | F100: -132509 | G100: -762575 | H100: 36665 | I100: 4488 | J100: 56833 | K100: 97986 | M100: 382 | N100: 530 | O100: 461361 | P100: 462273 | Q100: -46805
A101: 20204 | B101: CLARKE COUNTY HOSPITAL | C101: 45153.23 | D101: 0.001179478045 | E101: -406270 | F101: -113203 | G101: -651472 | H101: 31323 | I101: 3834 | J101: 48553 | K101: 83710 | M101: 327 | N101: 453 | O101: 394143 | P101: 394923 | Q101: -39986
A102: 20301 | B102: CITY OF OSCEOLA | C102: 65733.4 | D102: 0.001717066579 | E102: -591441 | F102: -164799 | G102: -948403 | H102: 45599 | I102: 5582 | J102: 70683 | K102: 121864 | M102: 475 | N102: 660 | O102: 573788 | P102: 574923 | Q102: -58211
A103: 21201 | B103: CLAY COUNTY | C103: 59854.94 | D103: 0.001563511351 | E103: -538549 | F103: -150062 | G103: -863589 | H103: 41521 | I103: 5082 | J103: 64362 | K103: 110965 | M103: 433 | N103: 601 | O103: 522475 | P103: 523509 | Q103: -53005
A104: 21301 | B104: CITY OF EVERLY | C104: 110.32 | D104: 2.881743299e-06 | E104: -993 | F104: -277 | G104: -1592 | H104: 77 | I104: 9 | J104: 119 | K104: 205 | M104: 1 | N104: 1 | O104: 963 | P104: 965 | Q104: -98
A105: 21302 | B105: SPENCER HOSPITAL | C105: 54072.67 | D105: 0.001412468767 | E105: -486523 | F105: -135565 | G105: -780162 | H105: 37510 | I105: 4591 | J105: 58144 | K105: 100245 | M105: 391 | N105: 543 | O105: 472001 | P105: 472935 | Q105: -47885
A106: 21303 | B106: CITY OF SPENCER | C106: 1488.46 | D106: 3.888106989e-05 | E106: -13393 | F106: -3732 | G106: -21476 | H106: 1033 | I106: 126 | J106: 1601 | K106: 2760 | M106: 11 | N106: 15 | O106: 12993 | P106: 13019 | Q106: -1318
A107: 21309 | B107: CITY OF DICKENS | C107: 295.56 | D107: 7.720522565e-06 | E107: -2659 | F107: -741 | G107: -4264 | H107: 205 | I107: 25 | J107: 318 | K107: 548 | M107: 2 | N107: 3 | O107: 2580 | P107: 2585 | Q107: -262
A108: 22201 | B108: CLAYTON COUNTY | C108: 70815.79 | D108: 0.001849827123 | E108: -637170 | F108: -177541 | G108: -1021732 | H108: 49125 | I108: 6013 | J108: 76148 | K108: 131286 | M108: 512 | N108: 711 | O108: 618152 | P108: 619375 | Q108: -62712
A109: 22302 | B109: CITY OF GUTTENBERG | C109: 21299.55 | D109: 0.0005563799445 | E109: -191644 | F109: -53400 | G109: -307310 | H109: 14776 | I109: 1809 | J109: 22903 | K109: 39488 | M109: 154 | N109: 214 | O109: 185924 | P109: 186292 | Q109: -18862
A110: 22303 | B110: CITY OF STRAWBERRY POINT | C110: 16794.36 | D110: 0.0004386968309 | E110: -151109 | F110: -42105 | G110: -242309 | H110: 11650 | I110: 1426 | J110: 18059 | K110: 31135 | M110: 121 | N110: 169 | O110: 146598 | P110: 146888 | Q110: -14872
A111: 22306 | B111: CITY OF ELKADER | C111: 15657.61 | D111: 0.0004090030157 | E111: -140881 | F111: -39255 | G111: -225908 | H111: 10862 | I111: 1330 | J111: 16837 | K111: 29029 | M111: 113 | N111: 157 | O111: 136675 | P111: 136945 | Q111: -13866
A112: 22308 | B112: CITY OF MONONA | C112: 11684.81 | D112: 0.0003052268212 | E112: -105135 | F112: -29295 | G112: -168589 | H112: 8106 | I112: 992 | J112: 12565 | K112: 21663 | M112: 84 | N112: 117 | O112: 101997 | P112: 102198 | Q112: -10348
A113: 22311 | B113: CITY OF GARNAVILLO | C113: 1483.23 | D113: 3.874445352e-05 | E113: -13345 | F113: -3719 | G113: -21400 | H113: 1029 | I113: 126 | J113: 1595 | K113: 2750 | M113: 11 | N113: 15 | O113: 12947 | P113: 12973 | Q113: -1313
A114: 22324 | B114: GUTTENBERG MUNIC HOSP | C114: 14508.21 | D114: 0.0003789787613 | E114: -130539 | F114: -36373 | G114: -209325 | H114: 10064 | I114: 1232 | J114: 15601 | K114: 26897 | M114: 105 | N114: 146 | O114: 126642 | P114: 126893 | Q114: -12848
A115: 23201 | B115: CLINTON COUNTY | C115: 85985.65 | D115: 0.002246089292 | E115: -773662 | F115: -215573 | G115: -1240603 | H115: 59648 | I115: 7301 | J115: 92460 | K115: 159409 | M115: 622 | N115: 863 | O115: 750570 | P115: 752055 | Q115: -76146
A116: 24201 | B116: CRAWFORD COUNTY | C116: 28590.67 | D116: 0.0007468362189 | E116: -257247 | F116: -71679 | G116: -412507 | H116: 19833 | I116: 2428 | J116: 30743 | K116: 53004 | M116: 207 | N116: 287 | O116: 249568 | P116: 250062 | Q116: -25319
A117: 24204 | B117: CRAWFORD COUNTY MEMORIAL HOSPITAL | C117: 58039.51 | D117: 0.001516089277 | E117: -522215 | F117: -145510 | G117: -837396 | H117: 40262 | I117: 4928 | J117: 62409 | K117: 107599 | M117: 420 | N117: 582 | O117: 506628 | P117: 507630 | Q117: -51398
A118: 24301 | B118: CITY OF DENISON | C118: 67083.21 | D118: 0.001752325878 | E118: -603586 | F118: -168183 | G118: -967878 | H118: 46536 | I118: 5696 | J118: 72134 | K118: 124366 | M118: 485 | N118: 673 | O118: 585570 | P118: 586728 | Q118: -59406
A119: 24303 | B119: CITY OF MANILLA | C119: 2815.14 | D119: 7.353617503e-05 | E119: -25329 | F119: -7058 | G119: -40617 | H119: 1953 | I119: 239 | J119: 3027 | K119: 5219 | M119: 20 | N119: 28 | O119: 24573 | P119: 24621 | Q119: -2493
A120: 24305 | B120: CITY OF CHARTER OAK | C120: 52.28 | D120: 1.365641222e-06 | E120: -470 | F120: -131 | G120: -754 | H120: 36 | I120: 4 | J120: 56 | K120: 96 | M120: 0 | N120: 1 | O120: 456 | P120: 457 | Q120: -46
A121: 25201 | B121: DALLAS COUNTY | C121: 229176.54 | D121: 0.005986475329 | E121: -2062033 | F121: -574565 | G121: -3306565 | H121: 158980 | I121: 19460 | J121: 246432 | K121: 424872 | M121: 1657 | N121: 2300 | O121: 2000485 | P121: 2004442 | Q121: -202950
A122: 25301 | B122: CITY OF WOODWARD | C122: 6841.9 | D122: 0.0001787218952 | E122: -61561 | F122: -17153 | G122: -98715 | H122: 4746 | I122: 581 | J122: 7357 | K122: 12684 | M122: 49 | N122: 69 | O122: 59723 | P122: 59841 | Q122: -6059
A123: 25303 | B123: CITY OF MINBURN | C123: 43.24 | D123: 1.129501271e-06 | E123: -389 | F123: -108 | G123: -624 | H123: 30 | I123: 4 | J123: 46 | K123: 80 | M123: 0 | N123: 0 | O123: 377 | P123: 377 | Q123: -38
A124: 25305 | B124: CITY OF VAN METER | C124: 11213.25 | D124: 0.0002929088836 | E124: -100892 | F124: -28113 | G124: -161785 | H124: 7779 | I124: 952 | J124: 12058 | K124: 20789 | M124: 81 | N124: 113 | O124: 97881 | P124: 98075 | Q124: -9930
A125: 25306 | B125: CITY OF DALLAS CENTER | C125: 56.7 | D125: 1.48109903e-06 | E125: -510 | F125: -142 | G125: -818 | H125: 39 | I125: 5 | J125: 61 | K125: 105 | M125: 0 | N125: 1 | O125: 495 | P125: 496 | Q125: -50
A126: 25308 | B126: CITY OF PERRY | C126: 75400.79 | D126: 0.001969595008 | E126: -678424 | F126: -189036 | G126: -1087885 | H126: 52306 | I126: 6403 | J126: 81078 | K126: 139787 | M126: 545 | N126: 757 | O126: 658174 | P126: 659476 | Q126: -66772
A127: 25312 | B127: CITY OF ADEL | C127: 57595.49 | D127: 0.00150449073 | E127: -518220 | F127: -144397 | G127: -830989 | H127: 39954 | I127: 4891 | J127: 61932 | K127: 106777 | M127: 417 | N127: 578 | O127: 502752 | P127: 503747 | Q127: -51004
A128: 25314 | B128: CITY OF GRANGER | C128: 16418.66 | D128: 0.0004288829172 | E128: -147728 | F128: -41163 | G128: -236889 | H128: 11390 | I128: 1394 | J128: 17655 | K128: 30439 | M128: 119 | N128: 165 | O128: 143319 | P128: 143603 | Q128: -14540
A129: 25315 | B129: CITY OF WAUKEE | C129: 366440.73 | D129: 0.00957204603 | E129: -3297078 | F129: -918699 | G129: -5287017 | H129: =ROUND(D129*$H$7,0) -> 254200 | I129: 31116 | J129: 394031 | K129: 679347 | M129: 2650 | N129: 3677 | O129: 3198666 | P129: 3204993 | Q129: -324506
A130: 25318 | B130: CITY OF DE SOTO | C130: 9660.56 | D130: 0.0002523500185 | E130: -86922 | F130: -24220 | G130: -139383 | H130: 6702 | I130: 820 | J130: 10388 | K130: 17910 | M130: 70 | N130: 97 | O130: 84327 | P130: 84494 | Q130: -8555
A131: 26201 | B131: DAVIS COUNTY | C131: 45631.14 | D131: 0.001191961856 | E131: -410570 | F131: -114401 | G131: -658367 | H131: 31654 | I131: 3875 | J131: 49067 | K131: 84596 | M131: 330 | N131: 458 | O131: 398315 | P131: 399103 | Q131: -40409
A132: 26203 | B132: DAVIS COUNTY HOSPITAL | C132: 45556.9 | D132: 0.001190022582 | E132: -409902 | F132: -114215 | G132: -657296 | H132: 31603 | I132: 3868 | J132: 48987 | K132: 84458 | M132: 329 | N132: 457 | O132: 397667 | P132: 398453 | Q132: -40344
A133: 26301 | B133: CITY OF BLOOMFIELD | C133: 34627.27 | D133: 0.0009045223284 | E133: -311561 | F133: -86814 | G133: -499603 | H133: 24021 | I133: 2940 | J133: 37234 | K133: 64195 | M133: 250 | N133: 347 | O133: 302262 | P133: 302859 | Q133: -30665
A134: 27201 | B134: DECATUR COUNTY | C134: 54128.93 | D134: 0.001413938373 | E134: -487029 | F134: -135706 | G134: -780974 | H134: 37549 | I134: 4596 | J134: 58204 | K134: 100349 | M134: 391 | N134: 543 | O134: 472492 | P134: 473426 | Q134: -47935
A135: 27204 | B135: DECATUR COUNTY HOSPITAL | C135: 48233.21 | D135: 0.001259932285 | E135: -433982 | F135: -120925 | G135: -695910 | H135: 33459 | I135: 4096 | J135: 51865 | K135: 89420 | M135: 349 | N135: 484 | O135: 421028 | P135: 421861 | Q135: -42714
A136: 27301 | B136: CITY OF LAMONI | C136: 20195.28 | D136: 0.0005275345613 | E136: -181709 | F136: -50631 | G136: -291378 | H136: 14009 | I136: 1715 | J136: 21716 | K136: 37440 | M136: 146 | N136: 203 | O136: 176285 | P136: 176634 | Q136: -17884
A137: 27302 | B137: CITY OF LEON | C137: 12645.95 | D137: =+C137/$C$7 -> 0.0003303334089 | E137: =ROUND(D137*$E$7,0) -> -113783 | F137: =ROUND(D137*$F$7,0) -> -31704 | G137: =ROUND(D137*$G$7,0) -> -182456 | H137: =ROUND(D137*$H$7,0) -> 8772 | I137: =ROUND(D137*$I$7,0) -> 1074 | J137: =ROUND(D137*$J$7,0) -> 13598 | K137: =ROUND(SUM(H137:J137),0) -> 23444 | M137: =ROUND(D137*$M$7,0) -> 91 | N137: =ROUND(D137*$N$7,0) -> 127 | O137: =ROUND(D137*$O$7,0) -> 110387 | P137: =ROUND(SUM(M137:O137),0) -> 110605 | Q137: =ROUND(D137*$Q$7,0) -> -11199
A138: 28201 | B138: DELAWARE COUNTY | C138: 32424.24 | D138: 0.0008469754925 | E138: -291740 | F138: -81290 | G138: -467818 | H138: 22493 | I138: 2753 | J138: 34866 | K138: 60112 | M138: 234 | N138: 325 | O138: 283032 | P138: 283591 | Q138: -28714
A139: 28204 | B139: REGIONAL MEDICAL CENTER | C139: 66957.57 | D139: 0.001749043951 | E139: -602456 | F139: -167868 | G139: -966066 | H139: 46448 | I139: 5686 | J139: 71999 | K139: 124133 | M139: 484 | N139: 672 | O139: 584474 | P139: 585630 | Q139: -59295
A140: 28301 | B140: CITY OF EDGEWOOD | C140: 2125.42 | D140: 5.551953265e-05 | E140: -19124 | F140: -5329 | G140: -30666 | H140: 1474 | I140: 180 | J140: 2285 | K140: 3939 | M140: 15 | N140: 21 | O140: 18553 | P140: 18589 | Q140: -1882
A141: 28304 | B141: CITY OF MANCHESTER | C141: 67463.17 | D141: 0.00176225107 | E141: -607005 | F141: -169136 | G141: -973360 | H141: 46799 | I141: 5729 | J141: 72543 | K141: 125071 | M141: 488 | N141: 677 | O141: 588887 | P141: 590052 | Q141: -59743
A142: 28312 | B142: CITY OF GREELEY | C142: 216.23 | D142: 5.648290006e-06 | E142: -1946 | F142: -542 | G142: -3120 | H142: 150 | I142: 18 | J142: 233 | K142: 401 | M142: 2 | N142: 2 | O142: 1887 | P142: 1891 | Q142: -191
A143: 29201 | B143: DES MOINES COUNTY | C143: 126091.35 | D143: 0.003293717394 | E143: -1134516 | F143: -316122 | G143: -1819249 | H143: 87470 | I143: 10707 | J143: 135585 | K143: 233762 | M143: 912 | N143: 1265 | O143: 1100653 | P143: 1102830 | Q143: -111662
A144: 29305 | B144: CITY OF WEST BURLINGTON | C144: 58123.13 | D144: 0.001518273571 | E144: -522967 | F144: -145720 | G144: -838602 | H144: 40320 | I144: 4935 | J144: 62499 | K144: 107754 | M144: 420 | N144: 583 | O144: 507358 | P144: 508361 | Q144: -51472
A145: 30201 | B145: DICKINSON COUNTY | C145: 67984.9 | D145: 0.001775879532 | E145: -611699 | F145: -170444 | G145: -980888 | H145: 47161 | I145: 5773 | J145: 73104 | K145: 126038 | M145: 492 | N145: 682 | O145: 593441 | P145: 594615 | Q145: -60205
A146: 30204 | B146: LAKES REGIONAL HEALTHCARE | C146: 66748 | D146: 0.001743569631 | E146: -600570 | F146: -167343 | G146: -963042 | H146: 46303 | I146: 5668 | J146: 71774 | K146: 123745 | M146: 483 | N146: 670 | O146: 582644 | P146: 583797 | Q146: -59110
A147: 30301 | B147: CITY OF SPIRIT LAKE | C147: 68894.28 | D147: 0.001799634062 | E147: -619881 | F147: -172724 | G147: -994008 | H147: 47792 | I147: 5850 | J147: 74082 | K147: 127724 | M147: 498 | N147: 691 | O147: 601379 | P147: 602568 | Q147: -61010
A148: 30302 | B148: CITY OF ARNOLDS PARK | C148: 37611.03 | D148: 0.0009824631404 | E148: -338408 | F148: -94294 | G148: -542653 | H148: 26091 | I148: 3194 | J148: 40443 | K148: 69728 | M148: 272 | N148: 377 | O148: 328307 | P148: 328956 | Q148: -33307
A149: 30305 | B149: CITY OF LAKE PARK | C149: 13114.91 | D149: 0.0003425834301 | E149: -118002 | F149: -32880 | G149: -189222 | H149: 9098 | I149: 1114 | J149: 14102 | K149: 24314 | M149: 95 | N149: 132 | O149: 114480 | P149: 114707 | Q149: -11614
A150: 30306 | B150: CITY OF OKOBOJI | C150: 25745.58 | D150: 0.0006725176997 | E150: -231648 | F150: -64546 | G150: -371458 | H150: 17860 | I150: 2186 | J150: 27684 | K150: 47730 | M150: 186 | N150: 258 | O150: 224734 | P150: 225178 | Q150: -22799
A151: 30307 | B151: CITY OF MILFORD | C151: 37185.74 | D151: 0.0009713538529 | E151: -334581 | F151: -93228 | G151: -536517 | H151: 25796 | I151: 3158 | J151: 39986 | K151: 68940 | M151: 269 | N151: 373 | O151: 324595 | P151: 325237 | Q151: -32930
A152: 31201 | B152: DUBUQUE COUNTY | C152: 51841.32 | D152: 0.001354182166 | E152: -466446 | F152: -129971 | G152: -747968 | H152: 35962 | I152: 4402 | J152: 55745 | K152: 96109 | M152: 375 | N152: 520 | O152: 452524 | P152: 453419 | Q152: -45909
A153: 31301 | B153: CITY OF CASCADE | C153: 8218.33 | D153: 0.0002146765537 | E153: -73945 | F153: -20604 | G153: -118574 | H153: 5701 | I153: 698 | J153: 8837 | K153: 15236 | M153: 59 | N153: 82 | O153: 71738 | P153: 71879 | Q153: -7278
A154: 31303 | B154: CITY OF FARLEY | C154: 7282.25 | D154: 0.0001902245752 | E154: -65523 | F154: -18257 | G154: -105068 | H154: 5052 | I154: 618 | J154: 7831 | K154: 13501 | M154: 53 | N154: 73 | O154: 63567 | P154: 63693 | Q154: -6449
A155: 31306 | B155: CITY OF DYERSVILLE | C155: 44899.49 | D155: 0.001172849931 | E155: -403987 | F155: -112567 | G155: -647811 | H155: 31147 | I155: 3813 | J155: 48280 | K155: 83240 | M155: 325 | N155: 451 | O155: 391928 | P155: 392704 | Q155: -39761
A156: 31307 | B156: CITY OF EPWORTH | C156: 6339.72 | D156: 0.0001656041119 | E156: -57042 | F156: -15894 | G156: -91470 | H156: 4398 | I156: 538 | J156: 6817 | K156: 11753 | M156: 46 | N156: 64 | O156: 55339 | P156: 55449 | Q156: -5614
A157: 31311 | B157: CITY OF PEOSTA | C157: 17410.41 | D157: 0.0004547890894 | E157: -156651 | F157: -43649 | G157: -251198 | H157: 12078 | I157: 1478 | J157: 18721 | K157: 32277 | M157: 126 | N157: 175 | O157: 151976 | P157: 152277 | Q157: -15418
A158: 31319 | B158: CITY OF ASBURY | C158: 29838.88 | D158: 0.0007794415562 | E158: -268478 | F158: -74809 | G158: -430516 | H158: 20699 | I158: 2534 | J158: 32086 | K158: 55319 | M158: 216 | N158: 299 | O158: 260464 | P158: 260979 | Q158: -26424
A159: 32201 | B159: EMMET COUNTY | C159: 38516.62 | D159: 0.001006118669 | E159: -346556 | F159: -96565 | G159: -555719 | H159: 26719 | I159: 3271 | J159: 41417 | K159: 71407 | M159: 279 | N159: 386 | O159: 336212 | P159: 336877 | Q159: -34109
A160: 32301 | B160: CITY OF ARMSTRONG | C160: 5393.15 | D160: 0.000140878117 | E160: -48525 | F160: -13521 | G160: -77813 | H160: 3741 | I160: 458 | J160: 5799 | K160: 9998 | M160: 39 | N160: 54 | O160: 47077 | P160: 47170 | Q160: -4776
A161: 32303 | B161: CITY OF ESTHERVILLE | C161: 1783.14 | D161: 4.657860538e-05 | E161: -16044 | F161: -4470 | G161: -25727 | H161: 1237 | I161: 151 | J161: 1917 | K161: 3305 | M161: 13 | N161: 18 | O161: 15565 | P161: 15596 | Q161: -1579
A162: 33201 | B162: FAYETTE COUNTY | C162: 79967.08 | D162: 0.002088874156 | E162: -719510 | F162: -200484 | G162: -1153767 | H162: 55473 | I162: 6790 | J162: 85988 | K162: 148251 | M162: 578 | N162: 802 | O162: 698034 | P162: 699414 | Q162: -70816
A163: 33302 | B163: CITY OF WEST UNION | C163: 23285.91 | D163: 0.0006082669969 | E163: -209517 | F163: -58380 | G163: -335970 | H163: 16153 | I163: 1977 | J163: 25039 | K163: 43169 | M163: 168 | N163: 234 | O163: 203263 | P163: 203665 | Q163: -20621
A164: 33305 | B164: CITY OF FAYETTE | C164: 15918.1 | D164: 0.0004158074511 | E164: -143224 | F164: -39908 | G164: -229667 | H164: 11042 | I164: 1352 | J164: 17117 | K164: 29511 | M164: 115 | N164: 160 | O164: 138949 | P164: 139224 | Q164: -14096
A165: 33307 | B165: CITY OF ELGIN | C165: 35.94 | D165: 9.388130362e-07 | E165: -323 | F165: -90 | G165: -519 | H165: 25 | I165: 3 | J165: 39 | K165: 67 | M165: 0 | N165: 0 | O165: 314 | P165: 314 | Q165: -32
A166: 34201 | B166: FLOYD COUNTY | C166: 22021.89 | D166: 0.0005752486759 | E166: -198144 | F166: -55211 | G166: -317732 | H166: 15277 | I166: 1870 | J166: 23680 | K166: 40827 | M166: 159 | N166: 221 | O166: 192229 | P166: 192609 | Q166: -19502
A167: 34302 | B167: CITY OF CHARLES CITY | C167: 792.58 | D167: 2.070351798e-05 | E167: -7131 | F167: -1987 | G167: -11435 | H167: 550 | I167: 67 | J167: 852 | K167: 1469 | M167: 6 | N167: 8 | O167: 6918 | P167: 6932 | Q167: -702
A168: 34305 | B168: CITY OF NORA SPRINGS | C168: 8501.11 | D168: 0.0002220632412 | E168: -76489 | F168: -21313 | G168: -122654 | H168: 5897 | I168: 722 | J168: 9141 | K168: 15760 | M168: 61 | N168: 85 | O168: 74206 | P168: 74352 | Q168: -7528
A169: 35201 | B169: FRANKLIN COUNTY | C169: 24512.99 | D169: 0.0006403203831 | E169: -220557 | F169: -61456 | G169: -353674 | H169: 17005 | I169: 2081 | J169: 26359 | K169: 45445 | M169: 177 | N169: 246 | O169: 213974 | P169: 214397 | Q169: -21708
A170: 35205 | B170: FRANKLIN GEN HOSP | C170: 29346.16 | D170: 0.000766570884 | E170: -264044 | F170: -73573 | G170: -423407 | H170: 20357 | I170: 2492 | J170: 31556 | K170: 54405 | M170: 212 | N170: 294 | O170: 256163 | P170: 256669 | Q170: -25988
A171: 35301 | B171: CITY OF HAMPTON | C171: 40026.62 | D171: 0.0010455624 | E171: -360142 | F171: -100350 | G171: -577505 | H171: 27766 | I171: 3399 | J171: 43040 | K171: 74205 | M171: 289 | N171: 402 | O171: 349393 | P171: 350084 | Q171: -35446
A172: 35309 | B172: CITY OF SHEFFIELD | C172: 8665.78 | D172: 0.0002263646976 | E172: -77971 | F172: -21726 | G172: -125030 | H172: 6011 | I172: 736 | J172: 9318 | K172: 16065 | M172: 63 | N172: 87 | O172: 75644 | P172: 75794 | Q172: -7674
A173: 35311 | B173: CITY OF HANSELL | C173: 163.36 | D173: 4.267236995e-06 | E173: -1470 | F173: -410 | G173: -2357 | H173: 113 | I173: 14 | J173: 176 | K173: 303 | M173: 1 | N173: 2 | O173: 1426 | P173: 1429 | Q173: -145
A174: 36201 | B174: FREMONT COUNTY | C174: 62720.8 | D174: 0.001638372417 | E174: -564335 | F174: -157246 | G174: -904937 | H174: 43509 | I174: 5326 | J174: 67443 | K174: 116278 | M174: 454 | N174: 629 | O174: 547491 | P174: 548574 | Q174: -55543
A175: 36306 | B175: CITY OF TABOR | C175: 4839.12 | D175: 0.0001264059249 | E175: -43540 | F175: -12132 | G175: -69819 | H175: 3357 | I175: 411 | J175: 5203 | K175: 8971 | M175: 35 | N175: 49 | O175: 42241 | P175: 42325 | Q175: -4285
A176: 37201 | B176: GREENE COUNTY | C176: 79285.26 | D176: 0.002071063875 | E176: -713375 | F176: -198775 | G176: -1143930 | H176: 55000 | I176: 6732 | J176: 85255 | K176: 146987 | M176: 573 | N176: 796 | O176: 692082 | P176: 693451 | Q176: -70212
A177: 37303 | B177: CITY OF JEFFERSON | C177: 39508.83 | D177: 0.001032036857 | E177: -355484 | F177: -99052 | G177: -570034 | H177: 27407 | I177: 3355 | J177: 42484 | K177: 73246 | M177: 286 | N177: 396 | O177: 344873 | P177: 345555 | Q177: -34988
A178: 38201 | B178: GRUNDY COUNTY | C178: 30518.61 | D178: 0.000797197243 | E178: -274593 | F178: -76513 | G178: -440323 | H178: 21171 | I178: 2591 | J178: 32816 | K178: 56578 | M178: 221 | N178: 306 | O178: 266397 | P178: 266924 | Q178: -27026
A179: 38303 | B179: CITY OF GRUNDY CENTER | C179: 50836.57 | D179: 0.001327936412 | E179: -457406 | F179: -127452 | G179: -733471 | H179: 35265 | I179: 4317 | J179: 54664 | K179: 94246 | M179: 368 | N179: 510 | O179: 443753 | P179: 444631 | Q179: -45019
A180: 38307 | B180: CITY OF BEAMAN | C180: 8.07 | D180: 2.108019255e-07 | E180: -73 | F180: -20 | G180: -116 | H180: 6 | I180: 1 | J180: 9 | K180: 16 | M180: 0 | N180: 0 | O180: 70 | P180: 70 | Q180: -7
A181: 39201 | B181: GUTHRIE COUNTY | C181: 29678.33 | D181: 0.0007752477211 | E181: -267033 | F181: -74406 | G181: -428200 | H181: 20588 | I181: 2520 | J181: 31913 | K181: 55021 | M181: 215 | N181: 298 | O181: 259063 | P181: 259576 | Q181: -26282
A182: 39301 | B182: CITY OF PANORA | C182: 45393.04 | D182: 0.001185742284 | E182: -408427 | F182: -113804 | G182: -654932 | H182: 31489 | I182: 3854 | J182: 48811 | K182: 84154 | M182: 328 | N182: 455 | O182: 396236 | P182: 397019 | Q182: -40198
A183: 39303 | B183: CITY OF STUART | C183: 41921.68 | D183: 0.001095064543 | E183: -377193 | F183: -105101 | G183: -604847 | H183: 29081 | I183: 3560 | J183: 45078 | K183: 77719 | M183: 303 | N183: 421 | O183: 365935 | P183: 366659 | Q183: -37124
A184: 40201 | B184: HAMILTON COUNTY | C184: 107729.43 | D184: 0.002814073268 | E184: -969304 | F184: -270087 | G184: -1554323 | H184: 74732 | I184: 9148 | J184: 115841 | K184: 199721 | M184: 779 | N184: 1081 | O184: 940372 | P184: 942232 | Q184: -95401
A185: 40202 | B185: HAMILTON HOSPITAL | C185: 52003.12 | D185: 0.001358408653 | E185: -467902 | F185: -130376 | G185: -750302 | H185: 36075 | I185: 4416 | J185: 55919 | K185: 96410 | M185: 376 | N185: 522 | O185: 453936 | P185: 454834 | Q185: -46052
A186: 40302 | B186: CITY OF WEBSTER CITY | C186: 3497.69 | D186: 9.1365525e-05 | E186: -31471 | F186: -8769 | G186: -50465 | H186: 2426 | I186: 297 | J186: 3761 | K186: 6484 | M186: 25 | N186: 35 | O186: 30531 | P186: 30591 | Q186: -3097
A187: 40303 | B187: CITY OF STRATFORD | C187: 532.4 | D187: 1.390718031e-05 | E187: -4790 | F187: -1335 | G187: -7681 | H187: 369 | I187: 45 | J187: 572 | K187: 986 | M187: 4 | N187: 5 | O187: 4647 | P187: 4656 | Q187: -471
A188: 40304 | B188: CITY OF JEWELL | C188: 9678.99 | D188: 0.000252831441 | E188: -87087 | F188: -24266 | G188: -139649 | H188: 6714 | I188: 822 | J188: 10408 | K188: 17944 | M188: 70 | N188: 97 | O188: 84488 | P188: 84655 | Q188: -8571
A189: 40307 | B189: CITY OF BLAIRSBURG | C189: 148.8 | D189: 3.886905392e-06 | E189: -1339 | F189: -373 | G189: -2147 | H189: 103 | I189: 13 | J189: 160 | K189: 276 | M189: 1 | N189: 1 | O189: 1299 | P189: 1301 | Q189: -132
A190: 40308 | B190: CITY OF WILLIAMS | C190: 129.74 | D190: 3.389026247e-06 | E190: -1167 | F190: -325 | G190: -1872 | H190: 90 | I190: 11 | J190: 140 | K190: 241 | M190: 1 | N190: 1 | O190: 1133 | P190: 1135 | Q190: -115
A191: 41201 | B191: HANCOCK COUNTY | C191: 44159 | D191: 0.001153507091 | E191: -397324 | F191: -110710 | G191: -637127 | H191: 30633 | I191: 3750 | J191: 47484 | K191: 81867 | M191: 319 | N191: 443 | O191: 385464 | P191: 386226 | Q191: -39106
A192: 41302 | B192: CITY OF BRITT | C192: 20824.83 | D192: 0.0005439794624 | E192: -187373 | F192: -52210 | G192: -300461 | H192: 14446 | I192: 1768 | J192: 22393 | K192: 38607 | M192: 151 | N192: 209 | O192: 181780 | P192: 182140 | Q192: -18442
A193: 41303 | B193: CITY OF GARNER | C193: 26074.17 | D193: 0.0006811010212 | E193: -234604 | F193: -65370 | G193: -376199 | H193: 18088 | I193: 2214 | J193: 28037 | K193: 48339 | M193: 189 | N193: 262 | O193: 227602 | P193: 228053 | Q193: -23090
A194: 41305 | B194: CITY OF KANAWHA | C194: 4831.63 | D194: 0.0001262102735 | E194: -43473 | F194: -12113 | G194: -69711 | H194: 3352 | I194: 410 | J194: 5195 | K194: 8957 | M194: 35 | N194: 48 | O194: 42175 | P194: 42258 | Q194: -4279
A195: 42201 | B195: HARDIN COUNTY | C195: 83107 | D195: 0.002170894129 | E195: -747761 | F195: -208356 | G195: -1199070 | H195: 57651 | I195: 7057 | J195: 89364 | K195: 154072 | M195: 601 | N195: 834 | O195: 725442 | P195: 726877 | Q195: -73596
A196: 42302 | B196: CITY OF ACKLEY | C196: 14038.45 | D196: 0.0003667078427 | E196: -126312 | F196: -35196 | G196: -202547 | H196: 9738 | I196: 1192 | J196: 15095 | K196: 26025 | M196: 102 | N196: 141 | O196: 122542 | P196: 122785 | Q196: -12432
A197: 42303 | B197: CITY OF ELDORA | C197: 43590.61 | D197: 0.001138659792 | E197: -392210 | F197: -109285 | G197: -628926 | H197: 30239 | I197: 3701 | J197: 46873 | K197: 80813 | M197: 315 | N197: 437 | O197: 380503 | P197: 381255 | Q197: -38602
A198: 42304 | B198: CITY OF IOWA FALLS | C198: 94419.59 | D198: 0.00246639794 | E198: -849547 | F198: -236718 | G198: -1362288 | H198: 65499 | I198: 8017 | J198: 101529 | K198: 175045 | M198: 683 | N198: 947 | O198: 824190 | P198: 825820 | Q198: -83615
A199: 42315 | B199: CITY OF HUBBARD | C199: 182.23 | D199: 4.760153021e-06 | E199: -1640 | F199: -457 | G199: -2629 | H199: 126 | I199: 15 | J199: 196 | K199: 337 | M199: 1 | N199: 2 | O199: 1591 | P199: 1594 | Q199: -161
A200: 43201 | B200: HARRISON COUNTY | C200: 51097.2 | D200: 0.001334744504 | E200: -459751 | F200: -128105 | G200: -737232 | H200: 35446 | I200: 4339 | J200: 54944 | K200: 94729 | M200: 370 | N200: 513 | O200: 446028 | P200: 446911 | Q200: -45250
A201: 43301 | B201: CITY OF MISSOURI VALLEY | C201: 27919.92 | D201: =+C201/$C$7 -> 0.0007293151048 | E201: =ROUND(D201*$E$7,0) -> -251212 | F201: =ROUND(D201*$F$7,0) -> -69998 | G201: =ROUND(D201*$G$7,0) -> -402829 | H201: =ROUND(D201*$H$7,0) -> 19368 | I201: =ROUND(D201*$I$7,0) -> 2371 | J201: =ROUND(D201*$J$7,0) -> 30022 | K201: =ROUND(SUM(H201:J201),0) -> 51761 | M201: =ROUND(D201*$M$7,0) -> 202 | N201: =ROUND(D201*$N$7,0) -> 280 | O201: =ROUND(D201*$O$7,0) -> 243713 | P201: =ROUND(SUM(M201:O201),0) -> 244195 | Q201: =ROUND(D201*$Q$7,0) -> -24725
... 246 more rows
